bitfinex/quotes_ETHUSD_20260313
["timestamp","ask_amount","ask_price","bid_price","bid_amount"]
[1773382078812,0.74901951,2109.6,2108.9,3.92970128]
[1773382079222,1.18511495,2109.5,2109.1,0.76525931]
[1773382079635,1.93410854,2109.6,2109.1,0.76525931]
[1773382080735,0.74901951,2109.6,2109.3,0.76525931]
[1773382080937,0.74901951,2109.6,2109.4,1.981]
[1773382081235,7.39026296,2110.0,2109.4,2.74625931]
[1773382081439,1.93388714,2110.0,2109.6,1.56468915]
[1773382081646,0.74901951,2110.0,2109.6,1.56468915]
[1773382082236,0.74901951,2110.0,2109.6,0.76525931]
[1773382083613,0.75001951,2110.2,2109.6,0.76525931]
[1773382084213,0.75001951,2110.2,2109.7,0.76525931]
[1773382084910,0.75001951,2110.2,2109.9,0.76525931]
[1773382085109,0.001,2110.2,2110.0,2.74625931]
[1773382085931,0.001,2110.2,2110.1,0.76525931]
[1773382086164,0.001,2110.5,2110.1,0.76525931]
[1773382086165,1.18558605,2110.5,2110.1,0.76525931]
[1773382086464,1.93460556,2110.5,2110.1,0.76525931]
[1773382087853,1.93459482,2110.5,2110.1,0.76525931]
[1773382088840,0.74901951,2110.4,2110.1,0.76525931]
[1773382089065,0.74901951,2110.4,2110.0,1.981]
[1773382089242,0.74901951,2110.4,2110.0,2.74625931]
[1773382089756,1.93368519,2110.3,2110.0,2.74625931]
[1773382090364,1.93368519,2110.3,2109.6,0.76525931]
[1773382090365,0.74901951,2110.2,2109.6,0.76525931]
[1773382090547,0.74901951,2110.2,2109.7,2.74625931]
[1773382092372,0.74901951,2110.0,2109.7,2.74625931]
[1773382092673,0.74901951,2110.0,2109.5,0.76525931]
[1773382092840,0.74901951,2110.0,2109.4,0.76525931]
[1773382093867,0.74901951,2110.0,2109.5,1.981]
[1773382094680,0.74901951,2109.8,2109.5,1.981]
[1773382095952,0.74901951,2109.8,2109.5,2.74625931]
[1773382096685,0.74901951,2110.0,2109.5,2.74625931]
[1773382096911,0.74901951,2110.0,2109.6,0.76525931]
[1773382097252,0.74901951,2110.0,2109.5,1.981]
[1773382097448,0.74901951,2110.0,2109.2,0.76525931]
[1773382097679,0.79942984,2110.1,2109.2,0.76525931]
[1773382097680,0.74901951,2109.7,2109.2,0.76525931]
[1773382097978,0.74901951,2109.7,2109.3,0.0011]
[1773382098774,0.74901951,2109.5,2109.4,1.979]
[1773382098982,1.18504849,2109.7,2109.4,2.74425931]
[1773382100258,0.001,2109.8,2109.5,0.76525931]
[1773382100475,1.18595394,2109.8,2109.5,0.76525931]
[1773382101877,0.001,2109.8,2109.5,1.95035123]
[1773382102079,0.001,2109.8,2109.5,0.76525931]
[1773382102259,0.001,2109.8,2109.6,0.72522132]
[1773382104889,0.001,2109.8,2109.7,0.72522132]
[1773382107591,0.001,2109.8,2109.5,0.72522132]
[1773382107793,0.68724924,2109.8,2109.3,0.72632132]
[1773382107992,0.68724924,2109.8,2109.4,1.98]
[1773382108293,0.68724924,2109.8,2109.3,0.72632132]
[1773382109293,0.68724924,2109.8,2109.4,1.98]
[1773382109969,1.1850026,2109.7,2109.4,1.98]
[1773382110171,1.87125184,2109.7,2109.4,1.98]
[1773382110371,1.87125184,2109.7,2109.5,0.0011]
[1773382111193,1.18598818,2109.8,2109.5,0.0011]
[1773382111380,1.18598818,2109.8,2109.5,0.72632132]
[1773382112067,0.68724924,2109.8,2109.5,0.72632132]
[1773382112407,0.001,2109.8,2109.5,2.71082696]
[1773382112579,0.001,2109.8,2109.6,0.72522132]
[1773382114203,0.68724924,2109.8,2109.5,0.0011]
[1773382115100,4.7388873,2110.4,2109.5,0.0011]
[1773382115394,4.7388873,2110.4,2109.8,0.72522132]
[1773382115395,0.68624924,2110.3,2109.8,0.72522132]
[1773382115593,0.68624924,2110.3,2109.8,0.77261916]
[1773382116296,1.86781075,2110.2,2109.8,0.72522132]
[1773382116602,1.86781075,2110.2,2109.8,0.77261917]
[1773382117396,1.86781075,2110.2,2109.9,0.72522132]
[1773382117599,1.86781075,2110.2,2110.0,1.98]
[1773382118093,0.68308893,2110.2,2110.0,1.98]
[1773382118298,1.18468869,2110.3,2110.0,2.70522132]
[1773382119274,1.85472235,2110.3,2110.0,2.70522132]
[1773382119605,1.85472235,2110.3,2110.0,1.98]
[1773382122724,0.67003366,2110.3,2110.0,3.89004784]
[1773382122879,1.7038261,2110.5,2110.1,0.72522132]
[1773382123080,1.1855562,2110.5,2110.1,0.72522132]
[1773382123592,1.18555975,2110.5,2110.1,0.72522132]
[1773382123998,1.65673077,2110.5,2110.1,0.72522132]
[1773382125037,0.001,2110.5,2110.2,0.56094093]
[1773382125242,0.001,2110.5,2110.3,0.56094093]
[1773382126946,0.001,2110.5,2110.3,1.74560102]
[1773382127131,0.001,2110.5,2110.4,0.56094093]
[1773382127632,0.001,2110.7,2110.5,0.56094093]
[1773382127817,0.001,2110.7,2110.6,2.54094093]
[1773382131634,0.001,2110.7,2110.6,3.72543822]
[1773382131927,1.18430442,2111.0,2110.7,0.47444126]
[1773382132151,1.47348234,2111.1,2110.7,0.47444126]
[1773382133226,0.2892228,2111.0,2110.6,1.98]
[1773382133532,0.2892228,2111.0,2110.6,2.45444126]
[1773382135239,0.47121671,2110.8,2110.3,0.47444126]
[1773382135414,0.002,2110.5,2110.3,0.47444126]
[1773382135608,0.002,2110.5,2110.4,0.47544126]
[1773382136420,0.002,2110.5,2110.4,2.45544126]
[1773382137935,0.002,2110.5,2110.4,2.50282564]
[1773382139234,0.47321671,2110.5,2110.4,1.98]
[1773382140135,0.002,2110.7,2110.4,1.98]
[1773382140338,1.51900949,2111.0,2110.6,0.47444126]
[1773382140537,1.18424894,2111.1,2110.6,0.47444126]
[1773382141044,1.51898333,2111.1,2110.6,0.47444126]
[1773382141838,1.18424894,2111.1,2110.6,0.47444126]
[1773382142138,0.33473439,2111.0,2110.6,0.47444126]
[1773382142336,0.33473439,2111.0,2110.6,1.65893523]
[1773382142535,0.33473439,2111.0,2110.7,0.47444126]
[1773382144145,1.51905134,2111.0,2110.7,0.47444126]
[1773382146025,0.33473439,2110.9,2110.5,0.47444126]
[1773382146231,0.33473439,2110.9,2110.3,5.53689423]
[1773382146232,0.33473439,2110.9,2110.6,1.981]
[1773382147246,0.33473439,2110.9,2110.4,0.47444126]
[1773382148146,1.51911945,2110.8,2110.4,0.47444126]
[1773382148447,1.51911945,2110.8,2110.5,1.981]
[1773382148847,1.51911945,2110.8,2110.6,0.001]
[1773382149147,1.52111945,2110.8,2110.6,0.001]
[1773382150322,1.18638506,2110.8,2110.6,0.001]
[1773382150528,1.52111945,2110.8,2110.6,0.001]
[1773382153246,0.33473439,2110.7,2110.6,0.001]
[1773382155052,1.51917557,2110.7,2110.6,0.001]
[1773382159765,0.47121671,2110.6,2110.2,0.47444126]
[1773382159948,0.47121671,2110.6,2110.3,1.98]
[1773382160776,1.18444118,2110.7,2110.4,0.46846324]
[1773382160968,1.18444118,2110.7,2110.5,0.49677457]
[1773382161143,0.002,2110.8,2110.5,0.49677457]
[1773382162973,0.002,2110.8,2110.6,0.001]
[1773382163780,0.002,2110.7,2110.6,0.001]
[1773382167786,0.002,2110.8,2110.6,0.49777299]
[1773382167947,1.65554041,2111.2,2110.7,0.46846324]
[1773382168661,0.47136633,2111.1,2110.7,0.46846324]
[1773382169779,1.18427285,2111.0,2110.7,0.46846324]
[1773382171074,1.65562333,2111.1,2110.7,0.46846324]
[1773382171376,1.184257,2111.1,2110.7,0.46846324]
[1773382172150,1.65562333,2111.1,2110.7,0.46846324]
[1773382172476,1.65562333,2111.1,2110.6,0.46946324]
[1773382172477,0.47136633,2111.0,2110.6,0.46946324]
[1773382172674,0.47136633,2111.0,2110.6,0.001]
[1773382173287,0.47136633,2111.0,2110.6,0.46946324]
[1773382173974,0.47136633,2111.2,2110.6,0.46946324]
[1773382174362,0.47136633,2111.2,2110.6,0.001]
[1773382175086,0.47136633,2111.2,2110.6,1.18549536]
[1773382175381,0.47136633,2111.2,2110.6,0.001]
[1773382175752,0.002,2110.9,2110.6,0.46946324]
[1773382178374,0.47336633,2110.9,2110.6,0.001]
[1773382179177,0.47336633,2110.9,2110.6,0.46946324]
[1773382180286,1.65771688,2110.9,2110.6,0.46946324]
[1773382180697,1.65771688,2110.9,2110.6,0.001]
[1773382180698,0.47136633,2110.8,2110.6,0.001]
[1773382181686,0.47136633,2113.2,2111.5,0.46846324]
[1773382181898,0.469675,2113.3,2112.2,0.46846324]
[1773382182055,0.469675,2112.8,2111.9,0.46846324]
[1773382182255,0.79773739,2113.1,2111.4,7.17963651]
[1773382182256,0.79773739,2112.5,2111.7,0.46846324]
[1773382182458,0.47136633,2112.3,2111.5,0.46846324]
[1773382183300,0.47136633,2112.3,2111.7,0.46846324]
[1773382183912,1.18348797,2112.4,2111.7,0.46846324]
[1773382184300,1.65852906,2112.4,2111.7,0.46846324]
[1773382184488,1.65852906,2112.4,2111.9,0.48702013]
[1773382184684,0.47504109,2112.3,2111.9,0.48702013]
[1773382185693,0.47504109,2112.7,2112.1,0.48702013]
[1773382185889,0.47424109,2112.7,2112.1,0.48702013]
[1773382186116,0.47504109,2112.6,2111.9,0.48702013]
[1773382186793,1.65847304,2112.5,2112.0,0.48702013]
[1773382187917,0.47504109,2112.5,2112.0,0.48702013]
[1773382188116,0.47504109,2112.7,2112.0,0.48702013]
[1773382188319,1.18337684,2112.6,2112.0,0.48702013]
[1773382188481,0.47504109,2112.5,2112.0,0.48702013]
[1773382188680,0.002,2112.3,2112.0,1.67073185]
[1773382188915,0.47504109,2112.4,2112.2,0.5]
[1773382189132,0.002,2112.5,2112.2,0.5]
[1773382189532,0.47704109,2112.5,2112.2,0.5]
[1773382191698,0.47353056,2112.4,2112.2,0.36496617]
[1773382191901,0.47353056,2112.4,2111.6,2.47800114]
[1773382191902,0.47353056,2112.4,2111.7,0.46790477]
[1773382192130,0.47353056,2112.3,2111.7,0.46790477]
[1773382193200,0.47353056,2112.1,2111.7,2.43490477]
[1773382193408,0.79773739,2112.4,2111.9,0.46790477]
[1773382193409,0.47353056,2112.4,2111.9,0.46790477]
[1773382193715,0.47353056,2112.4,2111.7,3.15083802]
[1773382193716,0.47353056,2112.4,2111.7,3.61878246]
[1773382194717,0.47353056,2112.4,2111.7,3.15087769]
[1773382195018,0.47353056,2112.4,2111.8,0.46790477]
[1773382195418,0.47353056,2112.2,2111.7,1.967]
[1773382195902,0.47353056,2112.2,2111.8,0.0171674]
[1773382196203,0.47353056,2112.2,2111.8,0.48507217]
[1773382197393,0.47553056,2112.5,2112.0,0.46790477]
[1773382199631,0.002,2112.5,2112.1,0.46790477]
[1773382200415,0.47553056,2112.5,2112.1,0.46790477]
[1773382201501,0.47553056,2112.5,2111.9,4.73506617]
[1773382201502,0.47353056,2112.3,2112.2,0.001]
[1773382201731,0.47353056,2112.2,2111.7,1.967]
[1773382201910,0.47353056,2112.2,2111.8,0.04735296]
[1773382202118,0.47353056,2112.2,2112.0,0.001]
[1773382202505,0.002,2112.3,2112.0,0.001]
[1773382202506,0.47553056,2112.3,2112.0,0.001]
[1773382204734,0.002,2112.3,2112.0,0.001]
[1773382207738,0.002,2112.3,2112.0,0.04834848]
[1773382207936,0.002,2112.3,2112.0,0.46890477]
[1773382208138,0.47553056,2112.3,2112.0,0.001]
[1773382208315,0.47553056,2112.3,2112.0,2.24448424]
[1773382208510,0.47553056,2112.3,2112.0,0.001]
[1773382209140,0.002,2112.3,2112.0,0.46890477]
[1773382212111,0.47553056,2112.3,2112.0,0.001]
[1773382215732,1.18360003,2112.2,2112.0,0.001]
[1773382217095,0.002,2112.1,2112.0,0.001]
[1773382218047,0.47553056,2112.1,2112.0,0.001]
[1773382218247,0.47553056,2112.1,2111.8,2.24348424]
[1773382219232,0.47553056,2112.1,2111.8,2.71138901]
[1773382221367,0.57948136,2112.0,2111.7,3.15187825]
[1773382221873,0.57948136,2112.0,2111.7,3.7203507]
[1773382222374,0.57948136,2112.0,2111.7,1.968]
[1773382222971,0.57948136,2111.9,2111.7,1.968]
[1773382223564,0.57948136,2111.9,2111.4,4.73603211]
[1773382223565,0.57948136,2111.9,2111.4,2.24348424]
[1773382223746,0.57948136,2111.9,2111.5,0.04735969]
[1773382224768,0.57948136,2111.9,2111.5,2.03735969]
[1773382226072,1.18382422,2111.8,2111.5,2.03735969]
[1773382228143,0.57948136,2111.8,2111.5,2.03735969]
[1773382228344,0.57948136,2111.8,2111.5,2.03655969]
[1773382229271,0.57948136,2111.8,2111.5,2.60503214]
[1773382229982,0.57948136,2111.8,2111.5,2.03655969]
[1773382230290,0.57948136,2111.6,2111.5,1.99]
[1773382230841,0.57948136,2111.7,2111.5,1.99]
[1773382231372,1.18386693,2111.8,2111.5,2.55847245]
[1773382231974,1.76334829,2111.8,2111.5,2.55847245]
[1773382232154,1.76334829,2111.8,2111.7,0.001]
[1773382232354,1.76334829,2111.8,2111.5,2.55847245]
[1773382232556,1.76334829,2111.8,2111.5,2.55947245]
[1773382232966,1.76334829,2111.8,2111.5,1.991]
[1773382234873,0.57948136,2111.8,2111.5,3.74346214]
[1773382235075,0.002,2111.9,2111.6,0.6158299]
[1773382236282,0.002,2111.9,2111.7,1.18388028]
[1773382236460,0.002,2111.9,2111.7,1.75235273]
[1773382236757,0.002,2111.9,2111.8,0.56847245]
[1773382241396,0.58148136,2111.9,2111.6,1.23124712]
[1773382241584,0.58148136,2111.9,2111.6,1.18388967]
[1773382241788,0.58148136,2111.9,2111.6,1.75236212]
[1773382243294,0.58148136,2111.9,2111.6,1.18388967]
[1773382244195,0.62561137,2111.8,2111.5,1.991]
[1773382244393,0.62561137,2111.8,2111.5,3.17498723]
[1773382247205,0.002,2111.7,2111.5,3.81351396]
[1773382248018,0.62761137,2111.7,2111.5,1.991]
[1773382250206,0.62561137,2111.6,2111.5,1.991]
[1773382250512,0.62561137,2111.6,2111.5,0.001]
[1773382250814,0.62561137,2111.6,2111.3,0.001]
[1773382252492,1.18399242,2111.5,2111.3,0.001]
[1773382252695,0.62647091,2111.4,2111.3,0.001]
[1773382254590,1.8105194,2111.4,2111.3,0.001]
[1773382255013,0.62647091,2111.4,2111.3,0.001]
[1773382255639,1.8105194,2111.4,2111.3,0.001]
[1773382257038,0.62647091,2111.4,2111.3,0.001]
[1773382257435,1.8104989,2111.5,2111.3,0.001]
[1773382257632,0.62847091,2111.9,2111.4,0.64483915]
[1773382257942,1.81226383,2111.9,2111.4,0.64483915]
[1773382258146,1.81226383,2111.9,2111.5,0.66158956]
[1773382258960,0.002,2111.9,2111.6,0.64483915]
[1773382259567,0.002,2111.9,2111.6,2.63983915]
[1773382260764,0.002,2111.9,2111.6,3.82376294]
[1773382261368,0.002,2111.9,2111.7,0.001]
[1773382261572,0.62847091,2111.9,2111.7,0.001]
[1773382262072,0.002,2111.9,2111.7,0.001]
[1773382262572,0.62847091,2111.9,2111.7,0.001]
[1773382263067,0.002,2111.9,2111.7,0.64583915]
[1773382263440,1.81226116,2111.9,2111.7,0.001]
[1773382263773,0.62647091,2111.8,2111.7,0.001]
[1773382264675,0.62647091,2111.8,2111.6,1.995]
[1773382264881,0.62647091,2111.6,2111.5,0.001]
[1773382265471,1.18386946,2111.8,2111.5,0.001]
[1773382265671,0.62647091,2111.7,2111.5,0.001]
[1773382268559,0.62647091,2111.8,2111.5,0.001]
[1773382268959,1.81019349,2112.0,2111.6,1.82872639]
[1773382269165,0.62647091,2111.9,2111.5,0.001]
[1773382269371,0.62647091,2111.9,2111.5,0.03125817]
[1773382270363,0.62647091,2111.9,2111.6,0.64483915]
[1773382271108,1.81024808,2111.9,2111.6,0.64483915]
[1773382271464,0.62647091,2111.9,2111.6,0.64483915]
[1773382271697,0.62647091,2111.9,2111.6,1.82874755]
[1773382272185,0.62647091,2111.9,2111.6,0.64483915]
[1773382273187,0.62647091,2111.8,2111.5,0.04835969]
[1773382273384,0.62647091,2111.8,2111.5,0.001]
[1773382275178,1.81029513,2111.8,2111.7,0.001]
[1773382275379,0.62647091,2111.8,2111.7,0.001]
[1773382275575,1.81029513,2111.8,2111.7,0.001]
[1773382276300,0.62647091,2111.8,2111.7,0.001]
[1773382284009,1.81029513,2111.8,2111.7,0.001]
[1773382286205,0.7052487,2111.7,2111.5,0.001]
[1773382287482,0.7052487,2111.3,2110.4,1.8995746]
[1773382287707,10.66637134,2111.4,2110.5,1.8985183]
[1773382287708,0.7052487,2111.1,2110.5,1.8985183]
[1773382287876,0.7052487,2111.1,2110.5,0.71396695]
[1773382288075,0.7052487,2111.1,2110.7,0.001]
[1773382288076,0.7052487,2110.9,2110.7,0.001]
[1773382290202,0.7052487,2110.8,2110.7,0.001]
[1773382292242,1.88963376,2110.8,2110.7,0.001]
[1773382292405,0.7052487,2110.7,2110.4,0.001]
[1773382293005,0.7052487,2110.7,2110.2,5.54417541]
[1773382293207,0.7052487,2110.5,2110.1,0.001]
[1773382294306,0.7052487,2110.3,2110.1,0.001]
[1773382295305,0.7052487,2110.7,2110.2,0.71396695]
[1773382295603,0.7052487,2110.7,2110.1,0.71496695]
[1773382295604,0.7052487,2110.6,2110.1,0.71496695]
[1773382295802,0.7052487,2110.6,2110.1,0.76235806]
[1773382296301,1.18455342,2110.5,2110.1,0.76235806]
[1773382296479,1.18453,2110.6,2110.2,0.71396695]
[1773382296680,0.7052487,2110.9,2110.4,0.71396695]
[1773382298510,1.18438506,2110.8,2110.4,0.71396695]
[1773382299103,1.88960451,2110.9,2110.5,0.71396695]
[1773382300306,1.88959883,2110.9,2110.5,0.71396695]
[1773382300506,5.44221122,2111.1,2110.6,0.71396695]
[1773382300705,1.88946646,2111.1,2110.6,0.71396695]
[1773382301410,0.002,2110.8,2110.6,0.71396695]
[1773382302217,0.002,2110.8,2110.5,3.18355277]
[1773382302413,1.88968988,2110.7,2110.5,1.999]
[1773382302615,0.7052487,2110.7,2110.5,1.999]
[1773382304803,1.88969873,2110.7,2110.5,1.999]
[1773382305397,1.18642879,2110.8,2110.6,0.78327493]
[1773382305702,1.18640348,2110.8,2110.6,0.78327493]
[1773382313932,0.74977414,2110.7,2110.5,1.999]
[1773382314111,0.74977414,2110.7,2110.5,0.001]
[1773382314312,0.002,2110.6,2110.5,0.001]
[1773382316950,0.74977414,2111.0,2110.6,0.72830968]
[1773382317543,3.58608861,2111.0,2110.6,0.72830968]
[1773382317716,4.77036701,2111.0,2110.6,1.91278675]
[1773382317905,1.93405254,2111.0,2110.7,0.72830968]
[1773382320655,0.002,2111.1,2110.8,0.72830968]
[1773382321242,0.002,2111.1,2110.8,2.72430968]
[1773382321447,0.002,2111.1,2110.9,0.72830968]
[1773382324155,0.002,2111.1,2110.8,1.996]
[1773382324354,0.002,2111.1,2110.8,2.72430968]
[1773382324660,0.75177414,2111.1,2110.8,1.996]
[1773382325258,0.75177414,2111.1,2110.8,3.90868547]
[1773382325832,0.002,2111.1,2110.9,0.72830968]
[1773382331064,0.002,2111.1,2110.8,3.18037579]
[1773382331369,0.002,2111.1,2110.8,3.90868547]
[1773382334060,0.002,2111.1,2110.9,0.72830968]
[1773382334839,1.93568007,2111.7,2111.0,0.72830968]
[1773382335167,0.74977414,2111.6,2111.0,0.72830968]
[1773382336047,0.74977414,2111.6,2111.2,0.72830968]
[1773382336834,1.18590029,2111.7,2111.2,0.72830968]
[1773382337303,0.002,2111.7,2111.2,0.72830968]
[1773382337640,1.9356597,2111.7,2111.2,0.72830968]
[1773382338157,0.75177414,2111.7,2111.3,1.18410458]
[1773382338367,0.75177414,2111.7,2111.4,0.72830968]
[1773382338940,1.93565572,2111.7,2111.4,0.72830968]
[1773382339141,0.75177414,2111.7,2111.4,0.72830968]
[1773382339641,0.002,2111.5,2111.4,0.72830968]
[1773382344275,0.002,2111.5,2111.4,2.72330968]
[1773382347064,0.002,2111.5,2111.4,1.995]
[1773382347264,0.72637116,2111.5,2111.4,1.995]
[1773382349484,0.002,2111.5,2111.4,2.78693384]
[1773382352160,0.002,2111.5,2111.4,1.995]
[1773382352361,0.72637116,2111.5,2111.4,1.996]
[1773382354164,0.72437116,2111.4,2111.1,1.18521502]
[1773382355386,0.72437116,2111.4,2111.2,1.997]
[1773382355762,1.18599242,2111.5,2111.2,2.78893384]
[1773382356064,1.18599242,2111.5,2111.3,0.79193384]
[1773382356267,0.002,2111.5,2111.3,0.79193384]
[1773382359389,0.72637116,2111.5,2111.2,1.997]
[1773382360493,0.72437116,2111.3,2110.9,0.001]
[1773382361177,1.18416066,2111.2,2110.9,0.001]
[1773382361377,0.72437116,2111.1,2110.9,0.001]
[1773382363385,0.72437116,2111.0,2110.9,0.001]
[1773382364076,0.72437116,2111.0,2110.5,0.76689274]
[1773382364393,0.71743255,2110.8,2110.3,0.23611145]
[1773382364583,0.71743255,2110.8,2110.3,0.001]
[1773382364970,0.71743255,2110.8,2110.4,0.74999397]
[1773382365579,1.18443923,2110.8,2110.4,0.74999397]
[1773382365780,0.71743255,2110.7,2110.4,0.74999397]
[1773382365979,0.71743255,2110.7,2110.3,3.94855196]
[1773382367472,1.90187373,2110.7,2110.6,0.001]
[1773382368495,0.71743255,2110.6,2110.3,2.76389274]
[1773382369600,1.90195354,2110.6,2110.3,2.76389274]
[1773382369772,1.90195354,2110.6,2110.3,1.998]
[1773382370880,0.74617758,2110.5,2110.3,1.998]
[1773382374098,1.93076118,2110.5,2110.2,0.75118909]
[1773382374303,1.93076118,2110.5,2110.1,0.001]
[1773382374598,1.93076118,2110.5,2110.1,0.75218909]
[1773382374975,0.74617758,2110.4,2110.1,0.75218909]
[1773382375206,0.74617758,2110.4,2110.2,1.997]
[1773382376500,0.74617758,2110.7,2110.2,3.18169292]
[1773382376706,0.74617758,2110.6,2110.2,1.997]
[1773382378808,0.74617758,2110.5,2110.2,1.997]
[1773382378988,0.74617758,2110.5,2110.2,2.74818909]
[1773382379387,0.74617758,2110.5,2110.3,0.001]
[1773382379610,0.74817758,2110.5,2110.3,0.001]
[1773382382180,0.002,2110.5,2110.3,0.001]
[1773382382386,0.002,2110.5,2110.3,0.74727379]
[1773382383887,0.74617758,2110.6,2110.3,0.74727379]
[1773382384087,0.002,2110.7,2110.3,0.74727379]
[1773382384317,1.93263596,2110.7,2110.3,1.9319338]
[1773382384905,1.93263596,2110.7,2110.3,0.74727379]
[1773382387181,1.93263305,2110.7,2110.3,1.18561042]
[1773382387386,1.93263305,2110.7,2110.4,0.73786502]
[1773382387888,0.74817758,2110.7,2110.4,0.73786502]
[1773382388105,0.002,2110.7,2110.4,0.73786502]
[1773382390510,0.74817758,2110.7,2110.3,0.001]
[1773382390695,0.74817758,2110.7,2110.3,0.73206726]
[1773382392132,1.93264833,2110.7,2110.5,0.001]
[1773382395121,0.74617758,2110.6,2110.5,0.001]
[1773382397117,1.93067487,2110.6,2110.5,0.001]
[1773382397489,0.74617758,2110.6,2110.5,0.001]
[1773382399619,1.93067487,2110.6,2110.5,0.001]
[1773382399916,0.74617758,2110.6,2110.5,0.001]
[1773382400692,0.002,2110.7,2110.5,0.71988032]
[1773382403729,0.67088877,2110.7,2110.5,0.001]
[1773382404098,3.5102209,2110.7,2110.3,0.001]
[1773382404296,0.66888877,2110.6,2110.3,0.001]
[1773382405226,0.67088877,2110.5,2110.3,0.001]
[1773382410126,1.18657785,2110.5,2110.3,0.001]
[1773382410306,0.66888877,2110.4,2110.3,0.001]
[1773382412432,0.002,2110.5,2110.3,0.001]
[1773382412632,0.67088877,2110.5,2110.3,0.001]
[1773382413132,0.66888877,2110.4,2110.1,0.001]
[1773382414832,0.66888877,2110.2,2110.1,0.001]
[1773382416503,0.66888877,2110.1,2109.8,0.001]
[1773382416707,1.18472182,2110.2,2109.8,0.67118439]
[1773382416906,0.66888877,2110.3,2109.8,0.67118439]
[1773382417336,3.50685743,2110.3,2109.8,0.67118439]
[1773382418530,3.50685743,2110.3,2110.0,0.001]
[1773382418725,1.18472182,2110.2,2110.0,0.001]
[1773382419811,0.002,2110.4,2110.0,0.66218838]
[1773382420012,0.67088877,2110.4,2110.0,0.66218838]
[1773382420212,1.85550093,2110.4,2110.0,0.66218838]
[1773382420811,0.67088877,2110.4,2110.0,1.185811]
[1773382421038,0.67088877,2110.4,2110.1,0.65820527]
[1773382421409,1.85550535,2110.4,2110.1,0.65820527]
[1773382422732,0.66888877,2110.3,2110.0,0.001]
[1773382422937,1.85359726,2110.3,2110.0,0.001]
[1773382423138,0.66888877,2110.2,2110.0,0.001]
[1773382426063,1.85362229,2110.2,2110.0,0.001]
[1773382426744,0.63957831,2110.1,2110.0,0.001]
[1773382427047,1.82435628,2110.1,2110.0,0.001]
[1773382427639,1.82435628,2110.1,2109.7,0.0011]
[1773382427640,0.63957831,2110.0,2109.7,0.0011]
[1773382427941,0.63957831,2109.9,2109.7,0.0011]
[1773382428647,3.47439157,2109.9,2109.5,0.0011]
[1773382428842,0.63957831,2109.8,2109.5,0.0011]
[1773382429051,0.63957831,2109.6,2109.5,0.0011]
[1773382430128,0.63957831,2109.6,2109.3,0.0011]
[1773382431056,0.67786497,2109.4,2109.3,0.0011]
[1773382432067,0.67786497,2109.4,2109.0,0.0011]
[1773382433557,1.86309229,2109.3,2109.0,0.0011]
[1773382433725,0.67786497,2109.2,2109.0,0.0011]
[1773382435752,1.86317598,2109.2,2109.0,0.0011]
[1773382437836,1.86296649,2109.6,2109.0,0.60113701]
[1773382438231,1.18510152,2109.6,2109.0,0.60113701]
[1773382438432,0.67786497,2109.5,2109.0,0.64855284]
[1773382439047,0.67786497,2109.5,2109.0,0.60113701]
[1773382439243,0.67786497,2109.5,2109.0,0.0011]
[1773382439446,0.67786497,2109.5,2109.0,0.5957135]
[1773382439968,1.8630361,2109.4,2109.0,0.5957135]
[1773382441668,0.67786497,2109.3,2109.0,0.5957135]
[1773382441969,1.86310927,2109.3,2109.0,0.5957135]
[1773382442399,1.86310927,2109.3,2109.0,0.0011]
[1773382443137,1.86310927,2109.3,2109.2,0.001]
[1773382447076,1.18521637,2109.4,2109.2,0.001]
[1773382447278,1.86308134,2109.4,2109.2,0.001]
[1773382448678,0.67786497,2109.3,2109.2,0.001]
[1773382449067,1.86309229,2109.3,2109.2,0.001]
[1773382454775,0.67786497,2109.5,2109.2,0.001]
[1773382456282,1.18517113,2109.4,2109.2,0.001]
[1773382456649,0.67786497,2109.3,2109.2,0.001]
[1773382458557,1.86309229,2109.3,2109.2,0.001]
[1773382460367,4.70535909,2109.3,2109.2,0.001]
[1773382463491,1.18513389,2109.5,2109.2,0.53331793]
[1773382463791,2.84270068,2109.4,2109.2,0.001]
[1773382463973,3.47279874,2109.4,2109.2,0.001]
[1773382465081,0.63009806,2109.3,2109.2,0.001]
[1773382468498,1.81532538,2109.3,2109.2,0.001]
[1773382468864,0.63009806,2109.3,2109.2,0.001]
[1773382471577,1.18505877,2109.6,2109.3,0.38355745]
[1773382471781,2.84312229,2109.5,2109.3,0.38355745]
[1773382471984,2.84312229,2109.4,2109.2,0.001]
[1773382472298,3.47322035,2109.4,2109.2,0.001]
[1773382472490,0.63009806,2109.4,2109.2,0.001]
[1773382472894,3.47322585,2109.4,2109.2,0.001]
[1773382473085,0.63009806,2109.4,2109.2,0.001]
[1773382473592,2.84312881,2109.4,2109.2,0.001]
[1773382473903,2.84312881,2109.4,2109.2,0.37941855]
[1773382474399,2.84312881,2109.4,2109.2,0.001]
[1773382474602,3.47322687,2109.4,2109.2,0.001]
[1773382474803,0.63009806,2109.4,2109.2,0.001]
[1773382475400,3.47292192,2109.4,2109.2,0.001]
[1773382475604,0.63009806,2109.4,2109.2,0.001]
[1773382475974,0.63009806,2109.2,2109.0,0.0011]
[1773382476186,1.18522732,2109.3,2109.0,0.37443289]
[1773382476802,1.81532538,2109.3,2109.0,0.37443289]
[1773382477182,1.81532538,2109.3,2108.9,1.9941]
[1773382478598,1.81532538,2109.3,2108.9,1.99822695]
[1773382480709,1.81532538,2109.3,2109.2,0.0011]
[1773382481002,4.65787786,2109.3,2109.2,0.0011]
[1773382481411,4.0277798,2109.3,2109.2,0.0011]
[1773382481987,2.84255248,2109.3,2109.2,0.0011]
[1773382483105,4.0277798,2109.3,2109.2,0.0011]
[1773382484708,1.18522732,2109.3,2109.2,0.0011]
[1773382484886,1.81530777,2109.4,2109.2,0.0011]
[1773382488810,0.6234232,2109.2,2109.0,0.0011]
[1773382490321,2.84241159,2109.3,2109.0,0.0011]
[1773382490520,2.84241159,2109.3,2109.0,0.00206533]
[1773382490693,1.18528351,2109.2,2109.0,0.00206533]
[1773382493711,1.18628351,2109.2,2109.0,0.00206533]
[1773382494113,1.18628351,2109.2,2109.0,0.0011]
[1773382495012,0.6234232,2109.1,2109.0,0.0011]
[1773382495594,1.80970671,2109.2,2109.0,0.0011]
[1773382496494,0.6234232,2109.1,2109.0,0.0011]